bitfinex/quotes_ETHUSD_20260131
["timestamp","ask_amount","ask_price","bid_price","bid_amount"]
[1769884134451,2.56578816,2399.1,2397.5,13.89486424]
[1769884134753,1.50708591,2399.1,2397.5,13.89486424]
[1769884134952,0.001,2399.2,2397.7,13.89486424]
[1769884135171,0.001,2399.2,2397.9,13.89486424]
[1769884135737,0.001,2399.2,2397.9,1.04257892]
[1769884135944,0.01762096,2399.2,2397.9,1.04257892]
[1769884136157,0.01662096,2399.1,2397.9,1.04257892]
[1769884136338,0.001,2398.3,2398.0,0.60868946]
[1769884136837,0.001,2398.3,2397.8,1.04261104]
[1769884138047,0.01762096,2399.2,2397.3,13.89596424]
[1769884138251,1.04302399,2399.2,2397.3,13.89596424]
[1769884140174,0.01662096,2399.1,2397.5,13.89486424]
[1769884140470,0.01662096,2398.7,2397.6,1.49376606]
[1769884140670,0.01662096,2398.7,2397.4,1.04279636]
[1769884140671,0.01662096,2398.5,2397.4,1.04279636]
[1769884140973,0.01662096,2398.3,2397.4,1.04279636]
[1769884141274,0.01662096,2398.5,2397.4,1.04279636]
[1769884141873,0.01662096,2398.3,2397.3,1.04391256]
[1769884142041,0.01662096,2398.0,2397.3,0.0011]
[1769884142247,0.01662096,2397.7,2397.0,0.0011]
[1769884142461,0.01662096,2397.5,2397.0,0.0011]
[1769884142657,0.01662096,2397.5,2396.2,0.0011]
[1769884142658,0.01662096,2397.1,2396.2,0.0011]
[1769884142946,0.01662096,2397.4,2396.3,1.0432691]
[1769884143145,0.01662096,2397.4,2396.4,0.52175053]
[1769884143351,0.01662096,2397.4,2396.2,4.17423618]
[1769884143352,13.55958813,2397.1,2396.2,0.0011]
[1769884143649,0.01662096,2396.9,2396.2,0.0011]
[1769884143850,0.01662096,2396.7,2396.1,0.0011]
[1769884145372,1.05972748,2396.7,2396.1,0.0011]
[1769884145570,0.01662096,2396.7,2396.1,0.0011]
[1769884145853,1.05968099,2396.8,2396.1,0.0011]
[1769884146375,4.17101147,2397.6,2396.1,0.0011]
[1769884146575,1.04279636,2397.4,2396.1,0.0011]
[1769884147350,6.06326637,2397.5,2396.1,0.0011]
[1769884147351,1.04273224,2397.6,2396.1,13.13549667]
[1769884147551,14.53849384,2397.6,2396.1,0.0011]
[1769884147874,0.01662096,2397.5,2396.1,0.0011]
[1769884148255,0.01662096,2397.5,2396.3,0.0011]
[1769884148452,0.01662096,2397.8,2396.3,0.0011]
[1769884148751,1.04263206,2397.8,2396.3,0.0011]
[1769884149254,0.01662096,2397.7,2396.3,0.0011]
[1769884149563,0.01662096,2397.1,2396.3,0.0011]
[1769884150554,0.01662096,2397.4,2396.3,0.0011]
[1769884150754,1.04263206,2397.8,2396.3,0.0011]
[1769884151358,0.01662096,2397.7,2396.3,0.0011]
[1769884151872,0.01662096,2397.4,2396.3,0.0011]
[1769884152073,0.01662096,2397.3,2396.3,0.0011]
[1769884152576,0.01662096,2397.4,2396.3,0.0011]
[1769884153757,1.04273565,2397.6,2396.3,0.0011]
[1769884155304,2.08850727,2397.6,2396.3,0.0011]
[1769884156312,1.05935661,2397.6,2396.3,0.0011]
[1769884156899,1.04273565,2397.6,2396.3,0.0011]
[1769884157689,0.01662096,2397.5,2396.3,0.0011]
[1769884158392,1.04277494,2397.5,2396.3,0.0011]
[1769884159989,0.001,2397.4,2396.3,0.0011]
[1769884162596,13.4957616,2397.3,2396.3,0.0011]
[1769884162791,1.35133826,2397.2,2396.3,0.0011]
[1769884163344,13.4957616,2397.3,2396.3,0.0011]
[1769884164638,1.04288336,2397.2,2396.3,0.0011]
[1769884170354,1.0428666,2397.3,2396.3,0.0011]
[1769884170638,0.01662096,2397.2,2396.3,0.0011]
[1769884170832,1.8910279,2397.2,2396.3,0.0011]
[1769884171034,0.01662096,2397.1,2396.3,0.0011]
[1769884171446,0.001,2397.4,2396.3,0.0011]
[1769884171618,1.0438102,2397.4,2396.3,0.0011]
[1769884172348,0.5224971,2397.3,2396.3,0.0011]
[1769884172534,14.00163774,2397.3,2396.3,0.0011]
[1769884173143,0.001,2397.3,2396.3,0.0011]
[1769884177523,0.001,2397.3,2396.3,13.16936844]
[1769884177726,0.001,2397.4,2396.3,13.16936844]
[1769884178637,0.001,2397.4,2396.4,1.04323151]
[1769884178836,0.001,2397.4,2396.4,14.21149995]
[1769884179061,0.001,2397.4,2396.5,1.8385526]
[1769884179240,0.001,2397.4,2396.5,2.7125526]
[1769884179640,0.001,2397.4,2396.5,15.88082104]
[1769884182064,4.1701547,2398.0,2396.7,12.68766756]
[1769884182247,4.17069105,2398.3,2397.3,12.68766756]
[1769884182248,0.001,2398.3,2397.3,12.68766756]
[1769884182552,12.60565049,2399.1,2396.9,0.01662096]
[1769884182553,12.60565049,2398.7,2397.4,2.14442885]
[1769884182875,1.05870648,2399.1,2397.0,12.68766756]
[1769884183053,4.18569461,2399.2,2397.3,12.70428852]
[1769884183054,0.001,2399.2,2397.3,12.70428852]
[1769884183361,0.001,2399.2,2397.5,12.68766756]
[1769884183576,0.001,2399.2,2397.7,12.68766756]
[1769884184230,0.001,2399.2,2397.9,12.68766756]
[1769884185636,13.49627145,2400.1,2398.1,12.70428852]
[1769884185637,12.60565049,2400.1,2398.1,12.70428852]
[1769884185831,13.64727841,2400.1,2398.3,12.68766756]
[1769884186232,13.64727841,2400.1,2398.4,1.04236157]
[1769884187949,13.64728185,2400.1,2398.4,13.73002913]
[1769884188151,12.62227145,2399.7,2398.3,1.04237956]
[1769884188356,12.62227145,2399.6,2398.4,1.04849835]
[1769884188566,12.62227145,2399.5,2398.4,1.04849835]
[1769884188863,0.01662096,2399.5,2398.4,1.04849835]
[1769884189057,1.05837443,2399.8,2398.4,1.04849835]
[1769884189058,13.66402492,2399.8,2398.5,0.20908779]
[1769884189758,13.66402492,2399.8,2398.4,1.04849835]
[1769884189759,12.62227145,2399.5,2398.3,1.04237956]
[1769884189951,12.62227145,2399.4,2398.2,1.91641974]
[1769884190155,13.64762106,2399.3,2398.2,1.91641974]
[1769884190343,0.01662096,2399.7,2398.2,1.91641974]
[1769884190344,0.01662096,2399.9,2398.2,14.6040873]
[1769884190668,13.66398564,2399.9,2398.3,1.87740509]
[1769884190965,1.36639028,2400.0,2398.2,14.6040873]
[1769884191162,13.6471977,2400.3,2398.2,14.62070826]
[1769884191462,13.66381866,2400.3,2398.2,14.62070826]
[1769884191649,14.47770904,2400.2,2398.3,14.56839684]
[1769884192251,1.04162326,2400.1,2398.4,13.73002913]
[1769884192764,0.01662096,2399.8,2398.4,1.04236157]
[1769884192938,12.62227145,2399.7,2398.4,1.04236157]
[1769884193151,13.64727375,2400.1,2398.4,13.73002913]
[1769884193345,13.64727375,2400.1,2398.4,1.04236157]
[1769884193346,12.62227145,2399.8,2398.4,1.04236157]
[1769884193546,12.62227145,2399.6,2398.4,1.04236157]
[1769884194270,1.05843035,2399.7,2398.3,4.16944629]
[1769884194568,14.53808084,2399.7,2398.3,4.16944629]
[1769884194744,1.87217161,2399.6,2398.3,5.19499344]
[1769884195765,14.49444306,2399.6,2398.3,5.19499344]
[1769884195970,12.62227145,2399.5,2398.3,4.16944629]
[1769884196273,13.66418332,2399.5,2398.3,4.16944629]
[1769884196652,13.66418332,2399.5,2398.6,0.0011]
[1769884197087,1.87217161,2399.6,2398.6,0.0011]
[1769884197373,1.04180406,2399.7,2398.6,0.0011]
[1769884197577,13.64745455,2399.7,2398.6,0.0011]
[1769884197952,13.66407551,2399.7,2398.6,0.0011]
[1769884198162,12.62227145,2399.6,2398.6,0.0011]
[1769884198955,1.04188372,2399.5,2398.6,0.0011]
[1769884199158,1.77169655,2399.4,2398.6,0.0011]
[1769884199359,0.01662096,2399.8,2398.4,0.0011]
[1769884199360,13.64840396,2399.9,2398.4,0.0011]
[1769884199671,12.62227145,2399.7,2398.4,0.0011]
[1769884200175,0.01662096,2399.6,2398.4,0.0011]
[1769884200361,12.62227145,2399.6,2398.4,0.0011]
[1769884200688,0.01662096,2399.5,2398.4,0.0011]
[1769884200859,2.1561723,2399.5,2398.4,0.0011]
[1769884201581,1.04192714,2399.4,2398.4,1.04346157]
[1769884201877,2.30745349,2399.5,2398.4,1.04346157]
[1769884202077,1.04190215,2399.5,2398.4,1.04346157]
[1769884203685,1.04273901,2399.9,2398.5,12.68766756]
[1769884203900,1.04273901,2399.9,2398.4,1.04346157]
[1769884203901,12.60565049,2399.5,2398.4,0.0011]
[1769884204061,0.01662096,2399.2,2398.4,0.0011]
[1769884205492,2.15284811,2399.4,2398.3,1.04239087]
[1769884205493,2.13622715,2399.4,2398.3,1.04239087]
[1769884205690,3.17815827,2399.4,2398.1,1.04249197]
[1769884206012,0.25119126,2399.9,2398.1,13.74678049]
[1769884206013,0.001,2399.9,2398.1,13.74678049]
[1769884206294,0.001,2399.9,2398.3,12.70428852]
[1769884206475,0.001,2399.9,2398.7,12.70428852]
[1769884206791,0.001,2399.9,2398.9,12.68766756]
[1769884206979,0.001,2399.9,2398.8,0.01662096]
[1769884206980,0.001,2399.9,2399.0,14.2730145]
[1769884207187,13.27009337,2401.2,2399.2,13.00258565]
[1769884207397,12.975045,2400.7,2399.0,0.874]
[1769884207697,12.975045,2400.7,2399.1,1.04205743]
[1769884207698,2.34057615,2400.6,2399.1,1.04205743]
[1769884207897,1.2991666,2400.6,2399.1,14.04464308]
[1769884208111,0.01662096,2400.8,2399.1,14.04464308]
[1769884208296,12.975045,2401.1,2399.1,14.06126404]
[1769884208610,0.31166933,2401.2,2399.1,14.06126404]
[1769884208611,0.31166933,2401.2,2399.4,13.00258565]
[1769884208798,0.29504837,2401.2,2399.4,13.01920661]
[1769884208989,0.29504837,2401.2,2399.6,13.00258565]
[1769884209292,0.01662096,2402.4,2400.3,13.00258565]
[1769884209601,0.21721264,2402.5,2400.9,13.00258565]
[1769884209908,0.01662096,2403.0,2401.1,14.0437751]
[1769884210108,0.01662096,2403.0,2401.2,13.00258565]
[1769884210319,0.01762096,2403.4,2401.7,13.00258565]
[1769884210320,0.001,2403.4,2401.7,13.00258565]
[1769884210480,12.976045,2403.4,2401.8,0.874]
[1769884210682,0.01662096,2402.9,2401.8,0.874]
[1769884210881,0.01662096,2402.8,2401.8,0.874]
[1769884211129,0.01662096,2402.5,2401.1,1.04118945]
[1769884211294,0.01662096,2402.6,2401.1,14.0437751]
[1769884211858,14.01551093,2402.8,2401.1,14.0437751]
[1769884212108,14.01551093,2402.8,2400.6,1.04139759]
[1769884212109,12.975045,2401.9,2400.6,1.04139759]
[1769884212320,12.975045,2401.6,2400.3,1.91451117]
[1769884212623,14.2742116,2401.8,2400.5,1.04141612]
[1769884212782,14.2742116,2401.8,2400.3,0.873]
[1769884212783,0.01662096,2401.4,2400.3,0.873]
[1769884212982,12.975045,2401.5,2400.6,1.0414022]
[1769884213206,0.84515061,2401.5,2400.3,1.91451737]
[1769884213395,12.975045,2401.7,2400.4,1.04147485]
[1769884213711,0.01662096,2401.4,2400.4,1.04148102]
[1769884213914,1.05769592,2401.4,2400.4,1.04148102]
[1769884214113,1.05769592,2401.4,2400.3,1.9145085]
[1769884214408,1.31578756,2401.8,2400.3,2.52259048]
[1769884214409,2.3567144,2401.8,2400.3,2.52259048]
[1769884214600,0.01662096,2402.1,2400.3,15.52517613]
[1769884214798,0.01662096,2402.6,2400.3,15.52517613]
[1769884214799,4.17885877,2402.6,2400.5,13.00258565]
[1769884214989,1.05717237,2402.6,2400.5,13.00258565]
[1769884215192,1.05720374,2402.5,2400.7,13.00258565]
[1769884215402,0.01662096,2402.1,2400.8,1.30192066]
[1769884215634,0.01662096,2401.8,2400.3,1.64959048]
[1769884216002,1.04086378,2401.9,2400.3,1.64959048]
[1769884216402,17.13806943,2402.1,2400.3,1.64959048]
[1769884216403,0.01662096,2402.1,2400.3,14.65217613]
[1769884216590,1.05724973,2402.4,2400.5,13.00258565]
[1769884216791,4.17895531,2402.5,2400.5,13.01920661]
[1769884216792,1.05720368,2402.5,2400.5,13.01920661]
[1769884217804,1.05720368,2402.5,2400.7,13.00258565]
[1769884217993,0.01662096,2402.3,2400.8,1.4043992]
[1769884218198,0.01662096,2402.2,2400.8,1.4043992]
[1769884218400,0.01662096,2402.2,2400.5,1.04142412]
[1769884218401,0.01662096,2401.7,2400.5,1.04142412]
[1769884218718,0.01662096,2401.7,2400.4,1.04146806]
[1769884218894,0.01662096,2401.7,2400.5,1.04142575]
[1769884219214,14.79450205,2402.4,2400.5,14.0440114]
[1769884219386,0.01662096,2402.4,2400.6,14.82356719]
[1769884219588,14.0155174,2402.8,2400.8,13.01920661]
[1769884219912,13.99868358,2403.3,2401.2,13.01920661]
[1769884220216,4.61079825,2403.8,2401.2,13.01920661]
[1769884220217,0.001,2403.4,2401.6,13.01920661]
[1769884220520,0.001,2403.4,2401.8,13.00258565]
[1769884220817,0.001,2403.4,2401.9,1.38755857]
[1769884221116,1.04119906,2403.4,2401.9,1.38755857]
[1769884221322,1.04119906,2403.4,2402.0,13.00258565]
[1769884221323,0.001,2403.4,2402.0,13.00258565]
[1769884221698,0.001,2403.4,2401.9,1.38755857]
[1769884222010,0.01662096,2403.2,2401.6,1.04097268]
[1769884222211,0.01662096,2403.0,2401.6,1.04097268]
[1769884222418,0.01662096,2402.8,2401.6,1.04097268]
[1769884222723,1.0412063,2403.4,2401.6,1.04097268]
[1769884222885,0.01662096,2403.2,2401.7,0.60778634]
[1769884223085,12.95842404,2403.3,2401.7,0.60778634]
[1769884223319,1.0412063,2403.4,2401.7,0.60778634]
[1769884223485,1.05782726,2403.4,2401.7,0.60778634]
[1769884223693,1.0412063,2403.4,2401.7,0.60778634]
[1769884223920,1.04027962,2403.2,2401.8,1.040886]
[1769884224122,0.01662096,2402.9,2401.8,1.040886]
[1769884224426,5.57259941,2403.3,2401.8,1.040886]
[1769884224427,0.001,2403.4,2401.9,0.01662096]
[1769884224588,0.001,2403.4,2401.9,14.9056731]
[1769884224789,0.001,2403.4,2402.0,0.01662096]
[1769884225009,0.001,2403.4,2401.9,14.88905214]
[1769884225910,12.95842404,2404.4,2402.5,14.05978933]
[1769884226095,1.39981653,2404.3,2402.7,13.01920661]
[1769884226307,0.21682382,2404.5,2402.8,13.01920661]
[1769884226499,12.95842404,2404.8,2402.9,0.01662096]
[1769884226708,12.95842404,2404.8,2402.9,13.01920661]
[1769884227022,15.39780972,2404.8,2403.0,1.32020372]
[1769884227221,14.35822112,2404.8,2403.2,0.01662096]
[1769884227412,14.35822112,2404.8,2403.3,0.873]
[1769884227721,12.95842404,2404.8,2403.3,0.873]
[1769884227920,12.95842404,2404.8,2403.4,1.04019305]
[1769884228089,1.03952661,2405.0,2403.4,1.04019305]
[1769884228536,12.975045,2404.9,2403.4,1.04019305]
[1769884228695,1.40145716,2404.8,2403.4,2.0636668]
[1769884229123,1.03937138,2405.3,2403.4,2.0636668]
[1769884229324,1.03937138,2405.3,2403.4,2.08028776]
[1769884229535,13.99775941,2405.4,2403.5,13.01920661]
[1769884229822,12.975045,2405.1,2403.4,2.0636668]
[1769884230034,12.95842404,2404.9,2403.5,0.7130681]
[1769884230206,12.95842404,2404.5,2403.4,1.04015768]
[1769884230389,12.95842404,2405.0,2403.4,1.04015768]
[1769884230805,12.95842404,2404.8,2403.4,1.04015768]
[1769884231006,12.975045,2404.6,2403.4,1.04015768]
[1769884231227,12.95842404,2404.4,2403.0,0.872]
[1769884231427,12.95842404,2404.4,2403.4,1.04018898]
[1769884231636,12.975045,2405.0,2403.4,1.04018898]
[1769884231929,1.39977594,2405.3,2403.8,0.01662096]
[1769884232136,12.95842404,2405.5,2403.9,0.872]
[1769884232425,13.99771662,2405.5,2403.9,0.872]
[1769884232607,12.975045,2405.4,2403.9,0.872]
[1769884232992,1.14158374,2405.8,2403.9,13.89120661]
[1769884233203,13.17518805,2405.9,2403.9,13.89120661]
[1769884233204,13.17518805,2405.9,2404.0,14.39336841]
[1769884233402,13.99755482,2405.9,2404.0,14.39336841]
[1769884233627,1.03912654,2405.9,2404.0,14.39336841]
[1769884233930,1.0390258,2406.1,2404.0,14.39336841]
[1769884234110,0.51184809,2406.2,2404.5,13.00258565]
[1769884234425,0.01662096,2405.9,2404.6,1.30025857]
[1769884234630,0.001,2404.8,2404.6,1.30025857]
[1769884234924,0.01662096,2405.9,2404.2,13.00258565]
[1769884235128,12.975045,2405.7,2404.1,1.03989018]
[1769884235432,0.01662096,2406.1,2404.1,1.03989018]
[1769884235433,0.21649134,2406.1,2404.5,13.00258565]
[1769884235727,0.01662096,2406.8,2405.3,13.01920661]
[1769884235728,0.21669342,2406.8,2405.3,13.01920661]
[1769884235907,0.21669342,2406.8,2405.4,13.87458565]
[1769884236231,1.0550981,2407.4,2405.5,14.04187062]
[1769884236232,1.25487179,2407.4,2405.5,14.04187062]
[1769884236534,0.01662096,2407.0,2405.5,1.03928497]
[1769884236721,12.95842404,2407.1,2405.6,0.60684248]
[1769884236895,0.01662096,2407.0,2405.6,0.60684248]
[1769884237097,0.01662096,2407.0,2405.0,13.00258565]
[1769884237098,12.93615512,2406.5,2405.0,1.03946836]
[1769884237324,0.01662096,2406.4,2405.2,1.03937974]
[1769884237499,0.01662096,2406.3,2405.2,1.03940928]
[1769884237703,0.01662096,2406.3,2404.5,0.872]
[1769884237704,14.25137788,2406.3,2404.5,0.872]
[1769884237925,12.95277608,2406.0,2404.7,1.03961633]
[1769884238197,1.31522276,2406.3,2404.5,1.91169012]
[1769884238198,2.33754856,2406.3,2404.5,1.91169012]
[1769884238506,0.01662096,2406.8,2404.9,13.72703033]
[1769884238818,1.03857478,2407.2,2405.2,0.01662096]
[1769884239001,17.10664947,2407.4,2405.4,13.72703033]
[1769884239002,0.54252698,2407.3,2405.4,13.72703033]
[1769884239199,13.25287353,2407.9,2405.7,13.72703033]
[1769884239405,0.30009745,2407.9,2406.3,0.01662096]
[1769884239606,1.03819306,2408.1,2406.4,0.872]
[1769884239808,12.93615512,2407.8,2405.8,0.872]
[1769884240119,1.55730492,2408.0,2406.3,13.71040937]
[1769884240332,0.01662096,2407.8,2405.9,1.03911218]
[1769884240636,0.01662096,2407.6,2405.9,1.03911218]
[1769884240808,0.01662096,2406.9,2405.6,2.23390929]
[1769884241007,12.93615512,2407.6,2405.8,1.0391131]
[1769884241326,0.1024,2407.8,2405.9,0.51957346]
[1769884241528,1.05485387,2408.0,2406.1,0.01662096]
[1769884241529,13.97438537,2408.0,2406.1,0.01662096]
[1769884241736,13.97438537,2408.0,2405.8,1.05573406]
[1769884241737,12.93615512,2407.6,2405.8,1.0391131]
[1769884241958,12.93620365,2406.9,2405.6,2.23390929]
[1769884242141,13.97492726,2406.8,2405.6,3.27312208]
[1769884242343,13.97492726,2406.8,2405.6,2.23390929]
[1769884242521,13.97492726,2406.8,2405.6,3.27315026]
[1769884242719,12.95282461,2406.4,2404.8,1.03958587]
[1769884243026,12.95282461,2406.4,2404.6,1.03963229]
[1769884243027,12.93620365,2406.0,2404.6,1.03963229]
[1769884243227,1.29362037,2405.9,2404.4,0.872]
[1769884243431,1.29362037,2405.9,2404.6,1.03964881]
[1769884243628,13.05522461,2405.8,2403.1,0.27704902]
[1769884243935,1.31024133,2405.9,2403.9,0.01662096]
[1769884243936,12.93620365,2405.7,2403.9,0.01662096]
[1769884244137,1.29362037,2405.9,2404.2,0.01662096]
[1769884244138,1.03913231,2405.9,2404.2,0.01662096]
[1769884244341,1.03913231,2405.9,2404.3,0.871]
[1769884244342,13.05522461,2405.8,2404.3,0.871]
[1769884244517,1.42771875,2405.7,2404.3,0.871]
[1769884244720,0.01662096,2405.6,2404.3,0.871]
[1769884245138,1.42771875,2405.7,2404.3,0.871]
[1769884245347,14.3639224,2405.7,2404.3,0.871]
[1769884245547,14.34730144,2405.7,2404.3,0.871]
[1769884245747,0.71499359,2405.6,2404.3,0.871]
[1769884246148,1.03928497,2405.5,2404.3,0.871]
[1769884246451,1.03928497,2405.5,2404.8,0.0011]
[1769884247324,1.7542615,2405.6,2404.8,0.0011]
[1769884247528,0.31653593,2405.5,2404.8,0.0011]
[1769884248228,1.03918507,2405.8,2404.3,1.91079448]
[1769884248229,12.93620365,2405.8,2404.3,1.91079448]
[1769884248438,12.93620365,2405.8,2403.9,4.15980854]
[1769884248439,12.95282461,2405.5,2404.1,1.03988363]
[1769884248643,1.29694456,2405.4,2404.2,1.03984489]
[1769884248952,1.29694456,2405.4,2404.3,1.03980279]
[1769884249324,14.86293679,2406.0,2404.3,1.03980279]
[1769884249528,13.99193679,2406.0,2404.3,1.03980279]
[1769884249724,13.03860365,2405.8,2403.7,4.17679671]
[1769884249956,0.01662096,2405.7,2404.3,1.03979845]
[1769884250273,0.871,2405.9,2404.0,12.84683812]
[1769884250551,1.03901544,2406.2,2404.5,0.01662096]
[1769884250751,1.03901544,2406.2,2404.6,0.871]
[1769884252262,4.15576593,2406.3,2404.7,1.03963072]
[1769884252425,0.25119126,2406.9,2404.7,1.03963072]
[1769884252426,0.001,2406.9,2405.2,12.83021716]
[1769884252625,0.001,2406.9,2405.0,0.01662096]
[1769884252626,0.001,2406.9,2405.5,12.84683812]
[1769884252850,0.001,2406.9,2405.6,0.871]
[1769884253026,1.03970115,2406.9,2405.6,0.871]
[1769884253437,13.03860365,2406.8,2404.5,17.00536101]
[1769884253640,1.40783048,2406.7,2404.8,1.39580165]
[1769884253827,1.40783048,2406.7,2404.6,1.03966071]
[1769884253828,12.93620365,2405.9,2404.6,1.03966071]
[1769884254029,0.01662096,2406.2,2404.6,1.03966071]
[1769884254353,1.0390258,2406.1,2404.8,1.03958749]
[1769884254548,1.15799365,2406.3,2404.8,1.03958749]
[1769884254884,0.88762096,2406.5,2404.8,1.03958749]
[1769884254885,0.01662096,2406.5,2404.8,1.03958749]
[1769884255029,17.10870244,2406.9,2405.1,12.83021716]
[1769884255030,0.001,2406.9,2405.1,12.83021716]
[1769884255234,0.001,2406.9,2405.2,13.70121716]
[1769884255627,1.03968451,2406.9,2405.2,13.70121716]
[1769884255827,0.11902096,2406.8,2405.3,1.37012172]
[1769884256081,0.01662096,2406.4,2405.2,0.871]
[1769884256367,0.11902096,2406.8,2405.2,0.871]
[1769884256368,0.001,2406.9,2405.4,13.86954533]
[1769884256576,0.001,2406.9,2405.5,1.8026858]
[1769884257036,0.001,2406.9,2405.4,1.03932817]
[1769884257037,0.01662096,2406.7,2405.4,1.03932817]
[1769884257431,0.01662096,2406.6,2405.3,1.03934746]
[1769884257866,0.01662096,2406.4,2405.2,0.871]
[1769884258054,0.01662096,2406.5,2405.2,1.91040031]
[1769884258230,0.01662096,2406.5,2405.3,1.0393662]
[1769884258231,1.03889627,2406.4,2405.3,1.0393662]
[1769884258428,0.52110851,2406.3,2405.2,1.91039023]
[1769884258655,0.52110851,2406.3,2405.2,1.91040399]
[1769884258857,0.52110851,2406.3,2405.0,4.15798577]
[1769884258858,0.01662096,2406.1,2404.7,1.03962858]
[1769884259059,0.01662096,2406.1,2405.1,1.03945513]
[1769884259355,1.36733846,2406.1,2405.1,1.03944002]
[1769884259657,0.01662096,2406.0,2404.9,1.03952285]
[1769884260158,0.01662096,2406.0,2404.5,0.8721]
[1769884260458,1.5766704,2406.3,2404.7,1.03963072]
[1769884260688,0.01662096,2406.1,2404.8,12.83021716]
[1769884260864,0.001,2406.7,2405.0,12.84683812]
[1769884261079,0.001,2406.7,2405.6,12.83021716]
[1769884261359,0.001,2406.7,2405.7,0.871]
[1769884261937,0.001,2406.7,2405.7,13.70121716]
[1769884262132,0.001,2406.7,2405.7,0.871]
[1769884262339,0.001,2406.7,2405.8,1.03915537]
[1769884262641,0.001,2406.7,2405.7,1.03918998]
[1769884262840,0.001,2406.7,2405.7,1.54197703]
[1769884263577,0.001,2406.7,2405.1,0.871]
[1769884263578,12.95282461,2406.4,2405.1,1.03942349]
[1769884263735,12.95282461,2406.4,2405.0,1.0394854]
[1769884263736,0.01662096,2406.2,2405.0,1.0394854]
[1769884263936,0.01662096,2406.2,2404.7,1.47802536]
[1769884263937,0.01662096,2406.0,2404.7,1.47802536]
[1769884264138,0.01762096,2406.7,2404.7,13.70121716]
[1769884264338,0.01762096,2406.7,2405.2,1.0394146]
[1769884264339,0.001,2406.7,2405.2,1.0394146]
[1769884264548,0.01662096,2406.6,2405.2,1.0394146]
[1769884264753,12.95282461,2406.5,2405.1,1.03944496]
[1769884264949,0.01662096,2406.1,2405.1,1.03944496]
[1769884265183,0.01662096,2406.1,2405.0,4.15796523]
[1769884265184,0.01662096,2406.1,2404.7,4.15851533]
[1769884265345,0.01662096,2406.1,2404.9,1.03953672]
[1769884265541,12.95282461,2406.0,2404.5,0.0011]
[1769884265793,12.95282461,2406.0,2404.6,4.15865957]
[1769884265794,1.31356552,2405.9,2404.6,4.15865957]
[1769884265971,0.01662096,2405.8,2404.8,1.03958631]
[1769884266293,0.01662096,2405.8,2404.9,1.03953601]
[1769884266446,1.05573643,2405.9,2404.5,1.04081719]
[1769884266647,0.01662096,2405.8,2404.5,1.04081719]
[1769884266954,13.18611529,2405.4,2404.5,0.0011]
[1769884267169,0.01662096,2405.1,2404.2,1.03984218]
[1769884267370,0.01662096,2405.1,2403.4,0.871]
[1769884267371,0.01662096,2405.1,2403.8,4.15999164]
[1769884267545,0.01662096,2405.1,2404.0,1.03993026]
[1769884267863,0.01662096,2404.7,2403.6,1.04006622]
[1769884268444,1.03967395,2404.6,2403.5,1.04012601]
[1769884268669,13.18611529,2404.9,2403.5,1.04012601]
[1769884268670,0.52452559,2405.8,2403.7,12.96694812]
[1769884268870,0.01662096,2406.5,2403.7,12.96694812]
[1769884268871,0.01662096,2405.0,2403.7,12.96694812]
[1769884269066,0.01662096,2406.0,2404.1,0.01662096]
[1769884269272,0.01662096,2406.0,2403.9,0.01662096]
[1769884269273,0.01662096,2405.9,2403.9,0.01662096]
[1769884269443,0.01662096,2405.4,2403.9,1.3016811]
[1769884269644,0.01662096,2405.4,2403.5,1.04012601]
[1769884269645,0.01662096,2405.3,2403.5,1.04012601]
[1769884269952,0.01662096,2405.2,2403.5,1.04012601]
[1769884270778,1.03945781,2405.1,2403.5,1.04012601]
[1769884271077,0.01662096,2404.7,2403.4,1.04018145]
[1769884271278,0.01662096,2404.7,2403.4,1.56028011]
[1769884271575,1.03939787,2405.3,2403.4,1.57690107]
[1769884272076,0.01662096,2404.8,2403.4,1.56028011]
[1769884272250,0.01662096,2404.6,2403.4,1.56028011]
[1769884272572,0.01662096,2404.4,2403.1,1.31734416]
[1769884272789,1.05644769,2404.3,2403.2,1.0402695]
[1769884272991,1.03970692,2404.6,2403.2,1.0402695]
[1769884273283,1.03970692,2404.6,2403.5,0.0011]
[1769884273481,1.03970692,2404.6,2403.0,1.04033426]
[1769884273482,0.01662096,2404.3,2403.0,1.04033426]
[1769884273808,0.01662096,2403.8,2402.6,0.0011]
[1769884274245,0.01662096,2403.8,2402.6,1.04163679]
[1769884274667,1.0401065,2403.6,2402.6,0.5215129]
[1769884274947,1.0401065,2403.6,2402.6,0.0011]
[1769884275391,0.01662096,2403.3,2402.2,1.04070982]
[1769884275690,0.01662096,2403.3,2402.4,1.0406215]
[1769884275852,0.01662096,2403.3,2402.3,1.04064436]
[1769884276257,0.01662096,2403.3,2402.3,1.56099002]
[1769884276452,1.05672746,2403.6,2402.5,1.04055623]
[1769884276648,1.05672746,2403.6,2401.9,0.871]
[1769884276649,0.01662096,2403.4,2401.9,0.871]
[1769884276875,0.01662096,2402.9,2401.5,4.16403868]
[1769884277044,0.01662096,2402.9,2401.1,0.27765144]
[1769884277045,0.01662096,2402.7,2401.6,1.45737544]
[1769884277251,0.01662096,2402.7,2401.1,1.14965144]
[1769884277252,0.01662096,2402.3,2401.1,1.14965144]
[1769884277554,0.01662096,2401.8,2400.8,0.0011]
[1769884277763,0.01662096,2402.1,2400.8,1.04241006]
[1769884277954,0.35259126,2402.8,2400.9,0.52076883]
[1769884278266,0.01662096,2402.1,2400.9,0.52076883]
[1769884278470,0.25019126,2401.9,2400.8,0.0011]
[1769884278675,0.25019126,2401.9,2400.5,0.0011]
[1769884278676,1.04101603,2401.5,2400.5,0.0011]
[1769884278981,0.01662096,2401.3,2400.5,0.0011]
[1769884279281,0.01662096,2401.3,2400.1,4.16648172]
[1769884279282,0.01662096,2401.1,2400.1,1.04158438]
[1769884279477,0.01662096,2401.0,2400.1,0.41664817]
[1769884279693,0.01662096,2400.8,2399.8,1.04174885]
[1769884279861,0.01662096,2400.8,2399.6,0.0011]
[1769884279862,0.01662096,2400.7,2399.7,1.04176949]
[1769884280049,0.01662096,2400.6,2399.6,0.0011]
[1769884280451,13.18611529,2400.5,2399.0,1.04208086]
[1769884280648,0.01662096,2400.1,2398.9,1.04210446]
[1769884280865,1.04164397,2400.1,2398.4,0.0011]
[1769884281192,1.32027363,2400.4,2398.6,12.96804812]
[1769884281377,1.0414953,2400.4,2398.6,0.0011]
[1769884281580,1.04139408,2400.7,2398.8,0.01662096]
[1769884281884,0.01662096,2400.8,2398.9,13.83894812]
[1769884281885,1.05796402,2400.8,2398.9,13.83894812]
[1769884282186,0.01662096,2400.7,2398.9,13.83894812]
[1769884282360,0.01662096,2400.7,2398.6,0.01772096]
[1769884282361,0.01662096,2399.9,2398.6,0.0011]
[1769884282565,0.872,2400.1,2398.6,0.0011]